fUSD/lending_fUSD_20260111
["ID","MTS","AMOUNT","RATE_DAILY","PERIOD"]
[401384317,1768170632515,-9999.99,0.0001398,2]
[401384318,1768170632525,-9999.99,0.0001398,2]
[401384319,1768170632535,-9999.99,0.0001398,2]
[401384320,1768170632545,-464.4,0.0001398,2]
[401384321,1768170632555,-150.99,0.0001398,2]
[401384322,1768170632565,-9999.99,0.0001398,2]
[401384323,1768170632575,-150.99,0.0001398,2]
[401384324,1768170632584,-499.99,0.0001398,2]
[401384325,1768170632594,-39761.5,0.0001398,2]
[401384326,1768170632603,-299.99,0.0001398,2]
[401384327,1768170632613,-20124.8,0.0001398,2]
[401384328,1768170632622,-999.99,0.0001398,2]
[401384329,1768170632632,-13969.27,0.0001398,2]
[401384330,1768170632641,-1005.0,0.00013981,2]
[401384331,1768170632651,-512.95515416,0.00013981,2]
[401384332,1768170632661,-500.0,0.00013981,2]
[401384333,1768170632670,-500.0,0.00013981,2]
[401384334,1768170632680,-500.0,0.00013981,2]
[401384335,1768170632689,-500.0,0.00013981,2]
[401384336,1768170632699,-500.0,0.00013981,2]
[401384337,1768170632708,-500.0,0.00013981,2]
[401384338,1768170632718,-500.0,0.00013981,2]
[401384339,1768170632728,-500.0,0.00013981,2]
[401384340,1768170632738,-500.0,0.00013981,2]
[401384341,1768170632747,-500.0,0.00013981,2]
[401384342,1768170632757,-500.0,0.00013981,2]
[401384343,1768170632767,-500.0,0.00013981,2]
[401384344,1768170632777,-500.0,0.00013981,2]
[401384345,1768170632786,-500.0,0.00013981,2]
[401384346,1768170632801,-500.0,0.00013981,2]
[401384347,1768170632810,-500.0,0.00013981,2]
[401384348,1768170632820,-500.0,0.00013981,2]
[401384349,1768170632830,-500.0,0.00013981,2]
[401384350,1768170632840,-500.0,0.00013981,2]
[401384351,1768170632850,-500.0,0.00013981,2]
[401384352,1768170632860,-500.0,0.00013981,2]
[401384353,1768170632870,-500.0,0.00013981,2]
[401384354,1768170632879,-500.0,0.00013981,2]
[401384355,1768170632890,-500.0,0.00013981,2]
[401384356,1768170632899,-500.0,0.00013981,2]
[401384357,1768170632909,-500.0,0.00013981,2]
[401384358,1768170632919,-500.0,0.00013981,2]
[401384359,1768170632931,-500.0,0.00013981,2]
[401384360,1768170632940,-500.0,0.00013981,2]
[401384361,1768170632950,-500.0,0.00013981,2]
[401384362,1768170632959,-542.67459147,0.00013981,2]
[401384363,1768170632970,-500.0,0.00013981,2]
[401384364,1768170632979,-556.98175584,0.00013981,2]
[401384365,1768170632989,-500.0,0.00013981,2]
[401384366,1768170632998,-500.0,0.00013981,2]
[401384367,1768170633009,-500.0,0.00013981,2]
[401384368,1768170633019,-500.0,0.00013981,2]
[401384369,1768170633028,-500.0,0.00013981,2]
[401384370,1768170633037,-500.0,0.00013981,2]
[401384371,1768170633048,-500.0,0.00013981,2]
[401384372,1768170633057,-500.0,0.00013981,2]
[401384373,1768170633067,-500.0,0.00013981,2]
[401384374,1768170633077,-500.0,0.00013981,2]
[401384375,1768170633086,-500.0,0.00013981,2]
[401384376,1768170633096,-500.0,0.00013981,2]
[401384377,1768170633105,-500.0,0.00013981,2]
[401384378,1768170633115,-500.0,0.00013981,2]
[401384379,1768170633124,-500.0,0.00013981,2]
[401384380,1768170633133,-500.0,0.00013981,2]
[401384381,1768170633143,-500.0,0.00013981,2]
[401384382,1768170633153,-500.0,0.00013981,2]
[401384383,1768170633162,-500.0,0.00013981,2]
[401384384,1768170633172,-500.0,0.00013981,2]
[401384385,1768170633181,-506.06363535,0.00013981,2]
[401384386,1768170633191,-500.0,0.00013981,2]
[401384387,1768170633202,-1000.0,0.0001399,2]
[401384388,1768170633212,-33591.7849,0.0001399,2]
[401384389,1768170633223,-965.0,0.00014035,2]
[401384390,1768170633233,-500.0,0.00014035,2]
[401384391,1768170633243,-1005.0,0.00014036,2]
[401384392,1768170633253,-200.0,0.00014056,2]
[401384393,1768170633263,-483.45132522,0.00014089,2]
[401384394,1768170633272,-500.0,0.00014089,2]
[401384395,1768170633282,-500.0,0.00014089,2]
[401384396,1768170633291,-500.0,0.00014089,2]
[401384397,1768170633301,-500.0,0.00014089,2]
[401384398,1768170633310,-500.0,0.00014089,2]
[401384399,1768170633320,-500.0,0.00014089,2]
[401384400,1768170633332,-500.0,0.00014089,2]
[401384401,1768170633342,-500.0,0.00014089,2]
[401384402,1768170633355,-500.0,0.00014089,2]
[401384403,1768170633364,-500.0,0.00014089,2]
[401384404,1768170633374,-317.23562895,0.00014089,2]
[401384405,1768170633384,-965.0,0.0001409,2]
[401384406,1768170633394,-500.0,0.0001409,2]
[401384407,1768170633404,-1005.0,0.00014091,2]
[401384408,1768170633414,-965.0,0.00014144,2]
[401384409,1768170633423,-500.0,0.00014144,2]
[401384410,1768170633433,-1005.0,0.00014145,2]
[401384411,1768170633443,-200.0,0.00014197,2]
[401384412,1768170633453,-965.0,0.00014199,2]
[401384413,1768170633463,-500.0,0.00014199,2]
[401384414,1768170633472,-1005.0,0.000142,2]
[401384415,1768170633482,-287.0,0.00014232,2]
[401384416,1768170633493,-965.0,0.00014254,2]
[401384417,1768170633502,-500.0,0.00014254,2]
[401384418,1768170633512,-1415.51,0.00014254,2]
[401384419,1768170633522,-1005.0,0.00014255,2]
[401384420,1768170633531,-500.0,0.00014255,2]
[401384421,1768170633541,-965.0,0.00014309,2]
[401384422,1768170633551,-500.0,0.00014309,2]
[401384423,1768170633560,-1005.0,0.0001431,2]
[401384424,1768170633570,-930.25806929,0.00014318,2]
[401384425,1768170633580,-186.68391504,0.00014318,2]
[401384426,1768170633590,-12584.76515743,0.00014328,2]
[401384427,1768170633599,-13321.40087697,0.00014336,2]
[401384428,1768170633609,-200.0,0.00014339,2]
[401384429,1768170633619,-965.0,0.00014364,2]
[401384430,1768170633628,-500.0,0.00014364,2]
[401384431,1768170633638,-1005.0,0.00014365,2]
[401384432,1768170633647,-1101.0,0.0001439,2]
[401384433,1768170633658,-500.0,0.0001439,2]
[401384434,1768170633667,-9466.0477357,0.0001439,2]
[401384435,1768170633681,-837.91347595,0.0001439,2]
[401384436,1768170633691,-500.0,0.00014399,2]
[401384437,1768170633700,-9254.17315284,0.000144,2]
[401384438,1768170633712,-24951.09158646,0.000144,2]
[401384439,1768170633724,-2083.5064752,0.000144,2]
[401384440,1768170633763,-10019.86684707,0.000144,2]
[401384441,1768170633803,-638.67352101,0.000144,2]
[401384442,1768170633815,-5287.49447385,0.000144,2]
[401384443,1768170633827,-1126.61412583,0.000144,2]
[401384444,1768170633860,-1659.78841062,0.000144,2]
[401384453,1768170637871,-2947.80744003,0.000144,2]
[401384454,1768170637883,-1021.13223865,0.000144,2]
[401384455,1768170637935,-1496.048167,0.000144,2]
[401384456,1768170638052,-11563.78439971,0.000144,2]
[401384457,1768170638064,-1611.51836,0.000144,2]
[401384458,1768170638079,-530.05011995,0.000144,2]
[401384459,1768170638091,-748.26893567,0.000144,2]
[401384634,1768170640034,-345.07998073,0.000144,2]
[401384642,1768170640095,-22884.75040778,0.000144,2]
[401384644,1768170640105,-965.0,0.00014418,2]
[401384646,1768170640115,-500.0,0.00014418,2]
[401384648,1768170640124,-1005.0,0.00014419,2]
[401384650,1768170640133,-965.0,0.00014473,2]
[401384652,1768170640143,-357.99250845,0.00014473,2]
[401384654,1768170640153,-1005.0,0.00014474,2]
[401384656,1768170640163,-500.0,0.00014504,2]
[401384658,1768170640172,-200.0,0.00014521,2]
[401384660,1768170640181,-965.0,0.00014528,2]
[401384662,1768170640191,-1415.51,0.00014528,2]
[401384664,1768170640200,-1005.0,0.00014529,2]
[401384666,1768170640209,-500.0,0.00014529,2]
[401384668,1768170640219,-965.0,0.00014583,2]
[401384670,1768170640228,-1005.0,0.00014584,2]
[401384672,1768170640237,-5101.93523409,0.00014613,2]
[401384674,1768170640248,-965.0,0.00014638,2]
[401384676,1768170640258,-1005.0,0.00014639,2]
[401384678,1768170640268,-965.0,0.00014692,2]
[401384680,1768170640277,-1005.0,0.00014693,2]
[401384682,1768170640287,-965.0,0.00014747,2]
[401384684,1768170640296,-1005.0,0.00014748,2]
[401384686,1768170640305,-12584.76515743,0.00014774,2]
[401384688,1768170640314,-13321.40087697,0.00014781,2]
[401384690,1768170640323,-965.0,0.00014802,2]
[401384692,1768170640333,-1415.51,0.00014802,2]
[401384694,1768170640346,-1005.0,0.00014803,2]
[401384695,1768170640356,-965.0,0.00014857,2]
[401384697,1768170640366,-1005.0,0.00014858,2]
[401384699,1768170640376,-151.0,0.00014907,2]
[401384701,1768170640386,-151.75,0.00014908,2]
[401384703,1768170640396,-193.11,0.0001491,2]
[401384705,1768170640406,-151.0,0.00014911,2]
[401384707,1768170640415,-151.0,0.00014911,2]
[401384709,1768170640425,-965.0,0.00014911,2]
[401384711,1768170640434,-1005.0,0.00014912,2]
[401384713,1768170640444,-971.8533273,0.00014966,2]
[401384715,1768170640453,-1023.02140532,0.00014967,2]
[401384717,1768170640463,-255.0,0.00015003,2]
[401384719,1768170640473,-369.95150876,0.00015032,2]
[401384721,1768170640482,-1415.51,0.00015076,2]
[401384723,1768170640492,-195.0,0.00015077,2]
[401384725,1768170640502,-189.50825211,0.00015077,2]
[401384727,1768170640511,-300.0,0.00015077,2]
[401384729,1768170640521,-250.0,0.00015077,2]
[401384731,1768170640531,-1101.0,0.00015147,2]
[401384733,1768170640540,-250.0,0.00015197,2]
[401384735,1768170640553,-193.53877001,0.00015198,2]
[401384737,1768170640562,-300.0,0.00015198,2]
[401384739,1768170640572,-600.0,0.00015198,2]
[401384740,1768170640581,-195.0,0.00015198,2]
[401384741,1768170640590,-1862.70122449,0.00015198,2]
[401384742,1768170640599,-300.0,0.00015198,2]
[401384744,1768170640609,-420.0,0.00015207,2]
[401384746,1768170640618,-12584.76515743,0.00015221,2]
[401384748,1768170640627,-13321.40087697,0.00015227,2]
[401384750,1768170640637,-600.0,0.00015228,2]
[401384752,1768170640646,-205.41541713,0.00015257,2]
[401384754,1768170640655,-2500.0,0.00015257,2]
[401384756,1768170640665,-246.64888626,0.00015257,2]
[401384758,1768170640674,-195.0,0.00015267,2]
[401384760,1768170640683,-1680.0,0.00015267,2]
[401384762,1768170640693,-409.80484392,0.0001532,2]
[401384764,1768170640702,-1415.51,0.0001535,2]
[401384766,1768170640711,-500.0,0.00015359,2]
[401384768,1768170640721,-748.23892247,0.00015497,2]
[401384770,1768170640730,-267.69558307,0.00015609,2]
[401384772,1768170640743,-1415.51,0.00015624,2]
[401384774,1768170640752,-3709.65116184,0.0001564,2]
[401384776,1768170640762,-12584.76515743,0.00015667,2]
[401384778,1768170640771,-13321.40087697,0.00015672,2]
[401384826,1768170641195,-500.0,0.00015726,2]
[401384828,1768170641204,-2042.80699116,0.00015807,2]
[401384830,1768170641214,-1415.51,0.00015898,2]
[401384832,1768170641222,-1399.15116703,0.000159,2]
[401384834,1768170641231,-1399.15116703,0.000159,2]
[401384836,1768170641240,-1399.15116703,0.000159,2]
[401384838,1768170641249,-1399.15116703,0.000159,2]
[401384840,1768170641259,-1101.0,0.00015945,2]
[401384842,1768170641268,-813.57047861,0.00015945,2]
[401384844,1768170641277,-1000.0,0.00015988,2]
[401384846,1768170641286,-670.48,0.00016,2]
[401384848,1768170641295,-23777.71478629,0.00016,2]
[401384850,1768170641304,-56512.5599143,0.00016,2]
[401384852,1768170641313,-150.0,0.00016,2]
[401384854,1768170641323,-1900.0,0.00016082,2]
[401384856,1768170641332,-12584.76515743,0.00016114,2]
[401384858,1768170641341,-9999.99,0.00016116,2]
[401384860,1768170641350,-13321.40087697,0.00016118,2]
[401384862,1768170641359,-1415.51,0.00016172,2]
[401384864,1768170641367,-267.69558307,0.00016181,2]
[401384866,1768170641377,-150.0,0.000162,2]
[401384868,1768170641386,-150.0,0.000162,2]
[401384870,1768170641395,-150.0,0.000162,2]
[401384872,1768170641404,-496.45188591,0.000162,2]
[401384874,1768170641414,-150.0,0.000162,2]
[401384876,1768170641423,-150.0,0.000162,2]
[401384878,1768170641433,-150.0,0.000162,2]
[401384880,1768170641442,-150.0,0.000162,2]
[401384882,1768170641451,-150.0,0.000162,2]
[401384884,1768170641460,-150.0,0.000162,2]
[401384886,1768170641470,-150.0,0.000162,2]
[401384888,1768170641479,-150.0,0.000162,2]
[401384890,1768170641488,-150.0,0.000162,2]
[401384892,1768170641496,-150.0,0.000162,2]
[401384894,1768170641506,-150.0,0.000162,2]
[401384895,1768170641515,-496.45188591,0.00016218,2]
[401384896,1768170641525,-433.0,0.00016225,2]
[401384897,1768170641534,-496.45188591,0.00016236,2]
[401384898,1768170641543,-496.45188591,0.00016255,2]
[401384899,1768170641552,-496.45188591,0.00016273,2]
[401384900,1768170641562,-150.0,0.0001629,2]
[401384901,1768170641571,-496.45188591,0.00016291,2]
[401384902,1768170641580,-150.0,0.00016306,2]
[401384903,1768170641589,-496.45188591,0.00016309,2]
[401384904,1768170641598,-150.0,0.00016312,2]
[401384905,1768170641607,-496.45188591,0.00016327,2]
[401384907,1768170641617,-150.0,0.00016329,2]
[401384909,1768170641626,-150.0,0.00016338,2]
[401384911,1768170641635,-200.0,0.0001634,2]
[401384913,1768170641645,-496.45188591,0.00016345,2]
[401384915,1768170641654,-150.0,0.0001635,2]
[401384917,1768170641664,-500.0,0.00016356,2]
[401384919,1768170641672,-900.0,0.00016356,2]
[401384921,1768170641681,-496.45188591,0.00016364,2]
[401384923,1768170641690,-150.0,0.0001638,2]
[401384924,1768170641699,-150.0,0.0001638,2]
[401384926,1768170641709,-296.46,0.00016381,2]
[401384929,1768170641719,-496.45188591,0.00016382,2]
[401384930,1768170641728,-496.45188591,0.000164,2]
[401384932,1768170641737,-150.0,0.00016412,2]
[401384934,1768170641746,-496.45188591,0.00016418,2]
[401384936,1768170641755,-150.0,0.00016425,2]
[401384938,1768170641764,-496.45188591,0.00016436,2]
[401384940,1768170641775,-500.0,0.00016438,2]
[401384942,1768170641784,-600.0,0.00016438,2]
[401384944,1768170641793,-888.0,0.00016438,2]
[401384946,1768170641803,-800.0,0.00016438,2]
[401384948,1768170641812,-226.62,0.00016438,2]
[401384950,1768170641820,-151.0,0.00016438,2]
[401384952,1768170641829,-1415.51,0.00016446,2]
[401384954,1768170641840,-496.45188591,0.00016455,2]
[401384956,1768170641848,-150.0,0.00016457,2]
[401384958,1768170641858,-150.0,0.00016457,2]
[401384960,1768170641866,-150.0,0.0001647,2]
[401384962,1768170641876,-496.45188591,0.00016473,2]
[401384965,1768170641885,-150.0,0.00016477,2]
[401384967,1768170641895,-496.45188591,0.00016491,2]
[401384969,1768170641904,-150.0,0.000165,2]
[401384971,1768170641913,-496.45188591,0.00016509,2]
[401384973,1768170641923,-150.0,0.00016518,2]
[401384975,1768170641935,-496.45188591,0.00016527,2]
[401384977,1768170641944,-150.0,0.00016537,2]
[401384979,1768170641953,-193.11,0.00016541,2]
[401384981,1768170641962,-496.45188591,0.00016545,2]
[401384982,1768170641972,-150.0,0.0001656,2]
[401384985,1768170641984,-150.0,0.0001656,2]
[401384986,1768170641994,-150.0,0.0001656,2]
[401384988,1768170642007,-12584.76515743,0.0001656,2]
[401384991,1768170642017,-13321.40087697,0.00016563,2]
[401384992,1768170642027,-496.45188591,0.00016564,2]
[401384995,1768170642038,-1089.8409,0.00016577,2]
[401384996,1768170642048,-496.45188591,0.00016582,2]
[401384998,1768170642057,-150.0,0.00016586,2]
[401385001,1768170642067,-500.0,0.00016599,2]
[401385003,1768170642077,-496.45188591,0.000166,2]
[401385005,1768170642086,-359.70734215,0.000166,2]
[401385006,1768170642095,-6000.92,0.00016613,2]
[401385008,1768170642104,-150.0,0.00016615,2]
[401385010,1768170642113,-496.45188591,0.00016618,2]
[401385012,1768170642122,-150.0,0.00016624,2]
[401385014,1768170642131,-496.45188591,0.00016636,2]
[401385017,1768170642141,-87073.5560605,0.00016645,2]
[401385019,1768170642150,-150.0,0.0001665,2]
[401385021,1768170642159,-150.0,0.0001665,2]
[401385023,1768170642168,-150.0,0.0001665,2]
[401385024,1768170642176,-150.0,0.0001665,2]
[401385027,1768170642186,-150.0,0.0001665,2]
[401385028,1768170642195,-496.45188591,0.00016655,2]
[401385031,1768170642204,-324.0,0.00016663,2]
[401385033,1768170642213,-496.45188591,0.00016673,2]
[401385035,1768170642222,-496.45188591,0.00016691,2]
[401385037,1768170642231,-496.45188591,0.00016709,2]
[401385038,1768170642240,-159.6,0.00016712,2]
[401385039,1768170642249,-150.0,0.00016714,2]
[401385040,1768170642258,-150.0,0.00016714,2]
[401385041,1768170642267,-834.0,0.0001672,2]
[401385042,1768170642277,-1415.51,0.0001672,2]
[401385043,1768170642286,-496.45188591,0.00016727,2]
[401385044,1768170642297,-150.0,0.00016729,2]
[401385045,1768170642313,-13461.56,0.00016735,2]
[401385046,1768170642328,-150.0,0.0001674,2]
[401385047,1768170642338,-150.0,0.0001674,2]
[401385048,1768170642348,-1101.0,0.00016742,2]
[401385049,1768170642358,-1101.0,0.00016742,2]
[401385050,1768170642368,-496.45188591,0.00016745,2]
[401385051,1768170642378,-150.0,0.00016754,2]
[401385052,1768170642388,-267.69558307,0.00016754,2]
[401385053,1768170642398,-150.0,0.00016762,2]
[401385054,1768170642408,-496.45188591,0.00016764,2]
[401385055,1768170642418,-28016.0,0.00016767,2]
[401385056,1768170642428,-16744.67998272,0.00016777,2]
[401385057,1768170642438,-496.45188591,0.00016782,2]
[401385058,1768170642447,-2351.0,0.00016794,2]
[401385059,1768170642456,-496.45188591,0.000168,2]
[401385060,1768170642466,-260300.6639379,0.000168,2]
[401385061,1768170642475,-150.0,0.000168,2]
[401385062,1768170642485,-2281.0,0.00016806,2]
[401385063,1768170642495,-496.45188591,0.00016818,2]
[401385064,1768170642504,-150.0,0.0001683,2]
[401385065,1768170642514,-150.0,0.00016835,2]
[401385066,1768170642523,-496.45188591,0.00016836,2]
[401385067,1768170642532,-150.0,0.00016843,2]
[401385068,1768170642541,-496.45188591,0.00016855,2]
[401385069,1768170642551,-500.0,0.00016872,2]
[401385070,1768170642560,-496.45188591,0.00016873,2]
[401385071,1768170642570,-2111.0,0.00016873,2]
[401385072,1768170642579,-150.0,0.00016875,2]
[401385074,1768170642589,-590.06318864,0.00016887,2]
[401385076,1768170642599,-496.45188591,0.00016891,2]
[401385079,1768170642609,-330.14190427,0.00016891,2]
[401385081,1768170642618,-150.0,0.00016892,2]
[401385082,1768170642627,-19200.0,0.000169,6]
[401385084,1768170642637,-496.45188591,0.00016909,2]
[401385086,1768170642647,-150.0,0.0001692,2]
[401385088,1768170642657,-150.0,0.0001692,2]
[401385090,1768170642667,-150.0,0.0001692,2]
[401385091,1768170642677,-496.45188591,0.00016927,2]
[401385092,1768170642687,-150.0,0.00016941,2]
[401385093,1768170642697,-496.45188591,0.00016945,2]
[401385094,1768170642707,-150.0,0.0001695,2]
[401385095,1768170642716,-496.45188591,0.00016964,2]
[401385096,1768170642726,-193.11,0.00016968,2]
[401385097,1768170642736,-150.0,0.00016971,2]
[401385098,1768170642746,-150.0,0.00016971,2]
[401385099,1768170642756,-561.20369866,0.00016975,2]
[401385100,1768170642766,-250.0,0.00016975,2]
[401385101,1768170642775,-250.0,0.00016975,2]
[401385102,1768170642785,-250.0,0.00016975,2]
[401385103,1768170642795,-500.0,0.00016975,2]
[401385104,1768170642804,-250.0,0.00016975,2]
[401385105,1768170642814,-500.0,0.00016975,2]
[401385106,1768170642823,-500.0,0.00016975,2]
[401385107,1768170642833,-250.0,0.00016975,2]
[401385108,1768170642842,-250.0,0.00016975,2]
[401385109,1768170642852,-500.0,0.00016975,2]
[401385110,1768170642866,-250.0,0.00016975,2]
[401385111,1768170642876,-238.92822807,0.00016975,2]
[401385112,1768170642885,-250.0,0.00016975,2]
[401385113,1768170642895,-250.0,0.00016975,2]
[401385114,1768170642905,-250.0,0.00016975,2]
[401385115,1768170642915,-250.0,0.00016975,2]
[401385116,1768170642925,-250.0,0.00016975,2]
[401385117,1768170642938,-250.0,0.00016975,2]
[401385118,1768170642947,-670.58624095,0.00016975,2]
[401385119,1768170642957,-186.62122529,0.00016975,2]
[401385120,1768170642966,-250.0,0.00016975,2]
[401385121,1768170642977,-250.0,0.00016975,2]
[401385122,1768170642987,-250.0,0.00016975,2]
[401385123,1768170642999,-260.89005731,0.00016975,2]
[401385124,1768170643008,-250.0,0.00016975,2]
[401385125,1768170643018,-250.0,0.00016975,2]
[401385126,1768170643027,-250.0,0.00016975,2]
[401385127,1768170643037,-250.0,0.00016975,2]
[401385128,1768170643046,-250.0,0.00016975,2]
[401385129,1768170643055,-250.0,0.00016975,2]
[401385130,1768170643065,-250.0,0.00016975,2]
[401385131,1768170643074,-250.0,0.00016975,2]
[401385132,1768170643083,-250.0,0.00016975,2]
[401385133,1768170643093,-250.0,0.00016975,2]
[401385134,1768170643103,-250.0,0.00016975,2]
[401385135,1768170643113,-250.0,0.00016975,2]
[401385136,1768170643124,-533.88981491,0.00016975,2]
[401385137,1768170643135,-250.0,0.00016975,2]
[401385138,1768170643147,-250.0,0.00016975,2]
[401385139,1768170643157,-322.6107,0.00016975,2]
[401385140,1768170643167,-250.0,0.00016975,2]
[401385141,1768170643176,-620.0,0.00016975,2]
[401385142,1768170643186,-998.0,0.00016975,2]
[401385143,1768170643196,-1000.0,0.00016975,2]
[401385144,1768170643206,-982.63386351,0.00016975,2]
[401385145,1768170643220,-1000.0,0.00016975,2]
[401385146,1768170643231,-1000.0,0.00016975,2]
[401385147,1768170643241,-578.20924308,0.00016975,2]
[401385148,1768170643254,-1000.0,0.00016975,2]
[401385149,1768170643264,-1000.0,0.00016975,2]
[401385150,1768170643275,-1000.0,0.00016975,2]
[401385151,1768170643286,-1000.0,0.00016975,2]
[401385152,1768170643298,-1000.0,0.00016975,2]
[401385153,1768170643307,-1000.0,0.00016975,2]
[401385154,1768170643317,-151.0,0.00016975,2]
[401385155,1768170643326,-1000.0,0.00016975,2]
[401385156,1768170643336,-1000.0,0.00016975,2]
[401385157,1768170643345,-1000.0,0.00016975,2]
[401385158,1768170643356,-1000.0,0.00016975,2]
[401385159,1768170643366,-500.0,0.00016975,2]
[401385160,1768170643376,-500.0,0.00016975,2]
[401385161,1768170643387,-151.0,0.00016975,2]
[401385162,1768170643398,-496.45188591,0.00016982,2]
[401385163,1768170643408,-500.0,0.00016986,2]
[401385164,1768170643423,-360.17683286,0.00016986,2]
[401385165,1768170643433,-359537.15,0.00016986,2]
[401385166,1768170643444,-150.0,0.00016987,2]
[401385167,1768170643455,-1415.62539638,0.00016994,2]
[401385168,1768170643466,-496.45188591,0.00017,2]
[401385169,1768170643479,-250.0,0.00017,2]
[401385170,1768170643490,-3556.92298458,0.00017,2]
[401385171,1768170643500,-160.0,0.00017,2]
[401385172,1768170643511,-12584.76515743,0.00017007,2]
[401385173,1768170643521,-13321.40087697,0.00017009,2]
[401385174,1768170643531,-150.0,0.0001701,2]
[401385175,1768170643542,-496.45188591,0.00017018,2]
[401385176,1768170643552,-150.0,0.00017031,2]
[401385177,1768170643562,-2111.0,0.00017035,2]
[401385178,1768170643572,-496.45188591,0.00017036,2]
[401385179,1768170643582,-162.0,0.0001704,2]
[401385180,1768170643591,-150.0,0.00017047,2]
[401385182,1768170643601,-496.45188591,0.00017055,2]
[401385184,1768170643611,-173.27685075,0.00017073,2]
[401385186,1768170643620,-500.0,0.00017073,2]
[401385188,1768170643630,-500.0,0.00017073,2]
[401385189,1768170643640,-500.0,0.00017073,2]
[401385190,1768170643649,-500.0,0.00017073,2]
[401385191,1768170643659,-500.0,0.00017073,2]
[401385193,1768170643668,-500.0,0.00017073,2]
[401385194,1768170643678,-500.0,0.00017073,2]
[401385196,1768170643689,-503.69857476,0.00017073,2]
[401385197,1768170643699,-500.0,0.00017073,2]
[401385198,1768170643710,-500.0,0.00017073,2]
[401385199,1768170643720,-166.87374433,0.00017073,2]
[401385200,1768170643730,-500.0,0.00017073,2]
[401385201,1768170643740,-500.0,0.00017073,2]
[401385202,1768170643749,-500.0,0.00017073,2]
[401385203,1768170643760,-500.0,0.00017073,2]
[401385204,1768170643769,-500.0,0.00017073,2]
[401385205,1768170643779,-500.0,0.00017073,2]
[401385206,1768170643789,-500.0,0.00017073,2]
[401385207,1768170643799,-500.0,0.00017073,2]
[401385208,1768170643809,-163.38938361,0.00017073,2]
[401385209,1768170643819,-500.0,0.00017073,2]
[401385210,1768170643829,-501.77392466,0.00017073,2]
[401385211,1768170643839,-500.0,0.00017073,2]
[401385212,1768170643849,-162.5649796,0.00017073,2]
[401385213,1768170643859,-500.0,0.00017073,2]
[401385214,1768170643869,-486.742849,0.00017073,2]
[401385215,1768170643879,-500.0,0.00017073,2]
[401385216,1768170643888,-500.0,0.00017073,2]
[401385217,1768170643898,-500.0,0.00017073,2]
[401385218,1768170643908,-500.0,0.00017073,2]
[401385219,1768170643918,-500.99700202,0.00017073,2]
[401385220,1768170643929,-500.0890643,0.00017073,2]
[401385221,1768170643941,-500.0,0.00017073,2]
[401385222,1768170643952,-500.0,0.00017073,2]
[401385223,1768170643962,-540.30872116,0.00017073,2]
[401385224,1768170643978,-500.15222599,0.00017073,2]
[401385225,1768170643990,-500.0,0.00017073,2]
[401385226,1768170644001,-500.0,0.00017073,2]
[401385227,1768170644013,-169.14530325,0.00017073,2]
[401385228,1768170644023,-496.45188591,0.00017073,2]
[401385229,1768170644034,-590.06318863,0.0001709,2]
[401385230,1768170644044,-496.45188591,0.00017091,2]
[401385231,1768170644055,-250.0,0.00017092,2]
[401385232,1768170644065,-150.0,0.000171,2]
[401385233,1768170644074,-150.0,0.000171,2]